bitfinex/quotes_ETHUSD_20251111
["timestamp","ask_amount","ask_price","bid_price","bid_amount"]
[1762899900976,0.9979,3438.0,3437.9,0.001]
[1762899901672,1.4829,3438.0,3437.9,0.001]
[1762899902307,0.1958,3438.9,3437.9,0.7743919]
[1762899902308,0.5,3438.4,3437.9,0.7743919]
[1762899902509,0.5,3438.4,3438.1,3.68275684]
[1762899903011,0.5,3438.4,3438.2,2.90847399]
[1762899903193,0.5,3438.4,3438.1,3.68277067]
[1762899903368,0.5,3438.4,3438.2,3.68269314]
[1762899903968,0.5,3438.4,3438.2,0.77420096]
[1762899904172,0.5,3438.4,3438.2,3.6826469]
[1762899904403,0.5,3438.4,3438.3,0.77420096]
[1762899904796,0.9979,3438.4,3438.3,0.77420096]
[1762899904998,1.4829,3438.4,3438.3,0.77420096]
[1762899905200,0.5,3438.2,3438.1,0.77420096]
[1762899905398,0.5,3438.2,3438.0,0.77420096]
[1762899905399,0.5,3438.1,3438.0,0.77420096]
[1762899905606,0.5,3438.3,3437.9,1.03613206]
[1762899905800,3.89349863,3438.2,3438.1,0.7757111]
[1762899906000,4.39139863,3438.2,3438.1,0.7757111]
[1762899907090,3.40858322,3438.1,3438.0,0.7757111]
[1762899907291,3.89358322,3438.1,3438.0,0.7757111]
[1762899907495,4.39148322,3438.1,3438.0,0.7757111]
[1762899907695,4.39148322,3438.1,3437.9,0.7767111]
[1762899907918,4.20076783,3438.0,3437.9,0.7767111]
[1762899908138,4.20076783,3438.0,3437.9,0.001]
[1762899909188,1.2921,3438.0,3437.9,0.001]
[1762899909718,4.20076783,3438.0,3437.9,0.001]
[1762899913021,5.33450863,3438.0,3437.9,0.001]
[1762899913584,5.33450863,3438.0,3437.4,0.001]
[1762899913585,3.4090909,3437.5,3437.4,0.001]
[1762899913803,3.7231909,3437.5,3437.4,0.001]
[1762899913998,4.2081909,3437.5,3437.4,0.001]
[1762899914758,0.8141,3437.5,3437.4,0.001]
[1762899915048,0.5,3437.7,3437.4,0.4993]
[1762899916321,0.002,3438.2,3437.8,2.90877198]
[1762899916527,0.002,3438.2,3438.1,3.57358322]
[1762899917007,0.002,3438.2,3438.1,5.09801528]
[1762899917318,0.002,3438.2,3438.1,4.06288322]
[1762899918961,0.002,3438.2,3438.1,5.61558132]
[1762899919258,0.1938,3442.2,3438.5,2.90824487]
[1762899919259,2.90706905,3439.9,3438.5,2.90824487]
[1762899919444,3.39212503,3439.9,3438.5,5.4427759]
[1762899919625,3.39212503,3439.9,3438.5,6.1807759]
[1762899920026,2.90716382,3439.8,3438.5,4.63384487]
[1762899920426,0.485,3439.9,3438.5,4.63384487]
[1762899920626,3.39208828,3439.9,3438.5,4.63384487]
[1762899920825,1.1337408,3440.8,3438.5,4.63384487]
[1762899920826,0.001,3438.6,3438.5,7.7200207]
[1762899921048,0.001,3438.6,3438.5,8.29523865]
[1762899921251,0.001,3438.6,3438.5,22.05723865]
[1762899921470,0.001,3438.6,3438.5,22.79423865]
[1762899922356,0.6788,3441.0,3440.1,2.90684044]
[1762899922530,3.40652466,3440.6,3439.9,2.90699942]
[1762899923046,0.5,3440.6,3440.0,17.40696862]
[1762899923248,0.5,3440.6,3440.0,14.5]
[1762899923432,0.5,3440.6,3440.2,2.90674028]
[1762899923632,0.5,3440.6,3440.0,14.5]
[1762899923954,2.90656709,3440.5,3440.0,14.5]
[1762899924160,0.1938,3441.0,3440.2,2.90680774]
[1762899924320,0.5,3440.4,3440.0,17.40691961]
[1762899924518,0.5,3440.4,3440.0,14.5]
[1762899924735,0.985,3440.4,3440.0,14.5]
[1762899925143,3.40667398,3440.4,3440.0,14.5]
[1762899925555,2.9068089,3440.2,3440.0,14.5]
[1762899925755,0.5,3440.1,3440.0,14.5]
[1762899925931,0.9692,3440.1,3440.0,14.5]
[1762899926256,3.87609224,3440.1,3440.0,14.5]
[1762899926420,3.87609224,3440.1,3439.4,3.07417459]
[1762899926623,4.3264076,3440.1,3439.2,0.77128256]
[1762899926821,4.3264076,3440.1,3439.2,0.735]
[1762899926822,0.5,3439.8,3439.2,0.735]
[1762899927022,3.40699879,3440.0,3439.4,2.90743473]
[1762899927223,2.90707897,3439.9,3439.3,17.40753925]
[1762899927465,0.5,3440.0,3439.3,14.5]
[1762899927656,0.5,3439.8,3439.3,14.5]
[1762899927843,3.10456125,3439.9,3439.3,14.5]
[1762899927844,3.60459775,3439.9,3439.3,14.5]
[1762899928030,2.90724639,3439.7,3439.3,14.5]
[1762899928230,2.90731248,3439.7,3439.3,14.5]
[1762899928436,3.60462574,3439.9,3439.3,14.5]
[1762899928658,2.90728902,3439.7,3439.3,14.5]
[1762899928873,3.10462574,3439.9,3439.3,14.5]
[1762899928874,2.90717525,3439.8,3439.3,14.5]
[1762899929034,2.90717525,3439.8,3439.3,15.234]
[1762899929750,0.4692,3439.4,3438.7,0.77128256]
[1762899929949,0.5,3438.7,3438.4,0.77128256]
[1762899930260,3.40812576,3438.7,3438.4,14.5]
[1762899930441,3.87624487,3438.5,3438.4,14.5]
[1762899930836,1.4183,3438.5,3437.6,0.77128256]
[1762899931076,0.6395,3437.7,3437.4,0.77228256]
[1762899931238,0.5,3437.7,3437.4,0.001]
[1762899931640,0.9692,3437.5,3437.4,0.001]
[1762899931990,3.8782909,3437.5,3437.4,0.001]
[1762899932199,4.3285909,3437.5,3437.4,0.001]
[1762899937987,0.5,3437.5,3437.4,0.001]
[1762899939689,4.3285909,3437.5,3437.4,0.001]
[1762899939901,0.5,3437.5,3437.4,0.001]
[1762899940144,0.5,3437.7,3437.4,0.001]
[1762899940629,0.5,3437.7,3437.5,2.9090909]
[1762899940801,0.5,3437.9,3437.6,2.90900628]
[1762899940996,0.5,3437.9,3437.7,17.40891292]
[1762899941193,0.6975,3437.9,3437.7,14.5]
[1762899941400,0.5,3437.5,3437.4,0.001]
[1762899941647,0.8639,3437.5,3437.4,0.001]
[1762899943820,3.7729909,3437.5,3437.4,0.001]
[1762899944027,4.2232909,3437.5,3437.4,0.001]
[1762899946121,3.7729909,3437.5,3437.4,0.001]
[1762899946363,4.2232909,3437.5,3437.4,0.001]
[1762899954152,3.7729909,3437.5,3437.4,0.001]
[1762899954549,3.4090909,3437.5,3437.4,0.001]
[1762899954752,4.3285909,3437.5,3437.4,0.001]
[1762899956266,3.8782909,3437.5,3437.4,0.001]
[1762899956670,0.5,3437.5,3437.4,0.001]
[1762899957178,3.4090909,3437.5,3437.4,0.001]
[1762899957352,0.5,3437.5,3437.4,0.001]
[1762899959116,3.8610909,3437.5,3437.4,0.001]
[1762899959285,4.3489909,3437.5,3437.4,0.001]
[1762899969816,3.81493346,3437.1,3437.0,0.001]
[1762899969987,4.54342422,3436.8,3436.7,0.001]
[1762899970210,4.99432422,3436.8,3436.7,0.001]
[1762899970412,5.48222422,3436.8,3436.7,0.001]
[1762899970622,5.88772822,3436.8,3436.7,0.001]
[1762899971616,3.41086918,3435.4,3435.3,0.001]
[1762899971821,3.75566918,3435.4,3435.3,0.001]
[1762899972216,4.24356918,3435.4,3435.3,0.001]
[1762899973130,5.37730998,3435.4,3435.3,0.001]
[1762899974503,6.15818197,3435.4,3435.3,0.001]
[1762899974705,5.78281398,3435.4,3435.3,0.001]
[1762899976743,4.54460998,3435.4,3435.3,0.001]
[1762899976945,4.99660998,3435.4,3435.3,0.001]
[1762899977145,5.89001398,3435.4,3435.3,0.001]
[1762899977440,4.99660998,3435.4,3435.3,0.001]
[1762899977605,4.54460998,3435.4,3435.3,0.001]
[1762899978079,4.99660998,3435.4,3435.3,0.001]
[1762899978293,5.48450998,3435.4,3435.3,0.001]
[1762899978494,4.99660998,3435.4,3435.3,0.001]
[1762899978778,4.54460998,3435.4,3435.3,0.001]
[1762899979097,2.91086918,3435.4,3435.3,0.4873]
[1762899979242,0.5,3435.4,3435.3,0.4873]
[1762899979769,3.41086918,3435.4,3435.3,0.4873]
[1762899979964,0.5,3435.4,3435.3,0.4873]
[1762899980169,3.41086918,3435.4,3435.3,0.4873]
[1762899980486,0.5,3435.4,3435.3,0.9557]
[1762899980880,0.5,3435.4,3435.3,1.35905508]
[1762899981380,0.5,3435.4,3435.3,3.86665391]
[1762899981572,0.5,3435.8,3435.5,2.91078157]
[1762899981879,0.6853,3437.0,3435.6,2.91066045]
[1762899982084,0.5,3436.0,3435.7,0.4863]
[1762899982280,0.5,3436.0,3435.7,0.9547]
[1762899982576,0.5,3436.0,3435.9,0.4863]
[1762899982742,0.5,3435.4,3435.3,0.001]
[1762899982943,3.41086918,3435.4,3435.3,0.001]
[1762899983283,3.41086918,3435.4,3435.3,0.4873]
[1762899984000,3.41086918,3435.4,3435.3,0.001]
[1762899984558,4.35076918,3435.4,3435.3,0.001]
[1762899986567,3.86286918,3435.4,3435.3,0.001]
[1762899986793,3.41086918,3435.4,3435.3,0.001]
[1762899986964,0.5,3435.4,3435.3,0.4939]
[1762899987178,3.41086918,3435.4,3435.3,0.4939]
[1762899987570,0.5,3435.4,3435.3,0.9587]
[1762899988395,0.5,3435.6,3435.3,3.86961725]
[1762899988581,0.5,3435.6,3435.3,2.91191725]
[1762899988783,0.5,3435.6,3435.5,0.4929]
[1762899989215,3.41086918,3435.4,3435.3,0.001]
[1762899989413,4.36766918,3435.4,3435.3,0.001]
[1762899989712,5.90691398,3435.4,3435.3,0.001]
[1762899993831,4.95070722,3434.7,3434.6,0.001]
[1762899993996,5.90750722,3434.7,3434.6,0.001]
[1762899995819,4.54520322,3434.7,3434.6,0.001]
[1762899996021,5.50200322,3434.7,3434.6,0.001]
[1762899997231,5.02250322,3434.7,3434.6,0.001]
[1762899998398,5.90750722,3434.7,3434.6,0.001]
[1762899998699,5.50200322,3434.7,3434.6,0.001]
[1762899998928,5.90195264,3434.7,3434.6,0.001]
[1762900000739,12.68508637,3434.7,3434.6,0.001]
[1762900002110,12.95713789,3434.7,3434.6,0.001]
[1762900002749,5.69450416,3434.7,3434.6,0.001]
[1762900002950,6.17400416,3434.7,3434.6,0.001]
[1762900003651,6.17385065,3434.7,3434.6,0.001]
[1762900005244,4.78884665,3434.7,3434.6,0.001]
[1762900005446,5.76834665,3434.7,3434.6,0.001]
[1762900005762,6.17385065,3434.7,3434.6,0.001]
[1762900010449,6.63065939,3434.7,3434.6,0.001]
[1762900011688,6.17385065,3434.7,3434.6,0.001]
[1762900012073,4.14940553,3434.3,3434.2,1e-08]
[1762900012390,4.42130354,3434.3,3434.2,1e-08]
[1762900012575,6.03454434,3434.3,3434.2,1e-08]
[1762900017207,7.78554434,3434.3,3434.2,1e-08]
[1762900017407,7.78554434,3434.3,3433.9,0.001]
[1762900017408,4.45130071,3434.0,3433.9,0.001]
[1762900017594,12.35443245,3434.0,3433.9,0.001]
[1762900017795,2.91307387,3432.8,3432.7,0.1667]
[1762900018000,3.68497188,3432.8,3432.7,0.1667]
[1762900018708,3.68497188,3432.8,3432.7,0.6219]
[1762900019207,3.68497188,3432.8,3432.7,1.1027]
[1762900021313,2.91383781,3431.9,3431.8,0.77128256]
[1762900021511,2.91383781,3431.9,3431.6,1.19507675]
[1762900021512,3.41400763,3431.7,3431.6,0.1667]
[1762900021677,3.41400763,3431.7,3431.1,0.4808]
[1762900021678,2.91443226,3431.2,3431.1,0.4808]
[1762900021872,2.91443226,3431.2,3430.8,0.77128256]
[1762900021873,2.9146871,3430.9,3430.8,0.77128256]
[1762900022077,0.5,3430.8,3430.7,0.4808]
[1762900022371,3.68667007,3430.8,3430.7,0.4808]
[1762900022597,3.68667007,3430.8,3430.7,0.936]
[1762900023014,0.77189801,3430.8,3430.7,0.936]
[1762900023383,3.68667007,3430.8,3430.7,0.936]
[1762900023579,0.77189801,3430.8,3430.7,0.936]
[1762900023779,3.68667007,3430.8,3430.7,0.936]
[1762900024020,0.77189801,3430.8,3430.7,0.936]
[1762900024520,3.68667007,3430.8,3430.7,0.936]
[1762900024816,0.77189801,3430.8,3430.7,0.936]
[1762900025178,3.68667007,3430.8,3430.7,0.936]
[1762900025590,0.77189801,3430.8,3430.7,0.936]
[1762900025790,3.68667007,3430.8,3430.7,0.936]
[1762900026392,0.77189801,3430.8,3430.7,0.936]
[1762900026814,3.68667007,3430.8,3430.7,0.936]
[1762900027019,0.77189801,3430.8,3430.7,0.936]
[1762900027521,0.26889801,3430.8,3430.7,3.85085702]
[1762900027683,0.5,3431.4,3430.7,2.30756415]
[1762900027884,0.5,3431.0,3430.8,0.4808]
[1762900028086,0.5,3431.0,3430.9,17.8698871]
[1762900028385,1.1337408,3432.2,3431.1,2.91444549]
[1762900028585,0.5,3431.7,3431.6,0.4552]
[1762900028818,3.41400763,3431.7,3431.6,0.4552]
[1762900029713,2.9142624,3431.4,3431.3,0.4808]
[1762900029918,0.5,3431.4,3431.3,0.4808]
[1762900030088,3.4142624,3431.4,3431.3,0.936]
[1762900033222,0.405504,3432.4,3431.3,0.936]
[1762900033223,0.6518,3432.9,3431.3,0.936]
[1762900033427,2.91263146,3433.4,3431.5,0.4552]
[1762900033428,3.10345459,3433.1,3431.5,0.4552]
[1762900033627,0.5,3432.0,3431.5,3.36936052]
[1762900033819,0.5,3432.0,3431.6,17.89486721]
[1762900033996,0.5,3432.0,3431.9,0.4552]
[1762900034196,0.5,3432.0,3431.9,0.936]
[1762900036636,0.45901337,3434.7,3431.9,8.37207453]
[1762900036837,0.002,3434.7,3432.8,6.78313373]
[1762900036998,3.04346242,3434.7,3434.6,0.6219]
[1762900037194,3.41346242,3434.7,3434.6,0.6219]
[1762900037520,0.002,3434.7,3434.6,1.1027]
[1762900037726,0.002,3434.7,3434.6,4.01424719]
[1762900037948,0.002,3434.7,3434.6,4.70684967]
[1762900038582,0.002,3434.7,3434.6,20.34059047]
[1762900039225,0.002,3434.7,3434.6,21.11187303]
[1762900039542,0.002,3434.7,3434.6,20.34059047]
[1762900040186,0.002,3434.7,3434.6,20.74609447]
[1762900043685,3.36483796,3438.5,3436.6,2.90985276]
[1762900043832,0.002,3439.0,3436.6,2.90985276]
[1762900043833,0.26904129,3438.4,3437.0,2.90951411]
[1762900044036,0.5,3438.1,3437.1,1.5392448]
[1762900044243,0.002,3439.0,3438.0,0.4552]
[1762900044442,0.002,3439.0,3438.5,0.6179]
[1762900044664,2.90983534,3439.0,3438.5,0.6179]
[1762900045365,2.90792153,3438.9,3438.5,0.6179]
[1762900045571,0.5,3438.7,3437.8,0.4808]
[1762900045885,0.5,3437.8,3437.6,0.1627]
[1762900046187,0.5,3437.8,3437.6,14.6627]
[1762900046366,3.40884388,3437.8,3437.6,14.6627]
[1762900046747,3.40884388,3437.8,3437.7,0.4738]
[1762900047265,0.5,3437.8,3437.7,0.4738]
[1762900048969,3.40892166,3437.7,3437.3,14.5]
[1762900049174,0.5,3437.4,3437.3,14.5]
[1762900049375,2.90849863,3438.2,3436.6,0.492]
[1762900049376,0.5,3437.1,3436.6,0.492]
[1762900049575,0.5,3436.6,3436.5,0.1647]
[1762900049877,0.5,3436.7,3436.5,0.1647]
[1762900050076,0.5,3436.7,3436.5,0.6385]
[1762900050241,0.5,3436.7,3436.6,0.4738]
[1762900050853,3.40976809,3436.7,3436.6,0.4738]
[1762900051049,0.5,3436.7,3436.6,0.4738]
[1762900051872,3.40969001,3436.8,3436.6,0.4738]
[1762900052776,3.40970238,3436.8,3436.6,0.4738]
[1762900052974,2.90976809,3436.7,3436.6,0.4738]
[1762900053175,3.4097119,3436.8,3436.6,0.4738]
[1762900053345,2.90976809,3436.7,3436.6,0.4738]
[1762900053539,3.4097158,3436.8,3436.6,0.4738]
[1762900053741,0.5,3437.2,3436.7,0.9658]
[1762900054052,2.90944466,3437.1,3436.9,0.4738]
[1762900054269,0.1891,3437.8,3436.5,0.1647]
[1762900054270,0.5,3436.6,3436.5,0.1647]
[1762900054469,3.40985276,3436.6,3436.5,0.1647]
[1762900055256,2.90962726,3436.9,3436.1,14.5]
[1762900055257,0.5,3436.3,3436.1,14.5]
[1762900055770,2.91027265,3436.2,3435.7,0.492]
[1762900055970,2.91027993,3436.1,3435.7,0.492]
[1762900056154,2.91020314,3436.2,3435.6,0.1647]
[1762900056360,0.5,3435.7,3435.4,0.1647]
[1762900056557,2.91015942,3436.3,3435.5,3.43184145]
[1762900056768,2.90968342,3436.8,3435.5,3.43183533]
[1762900056769,0.5,3436.0,3435.5,3.43183533]
[1762900056992,0.5,3436.0,3435.5,15.02110784]
[1762900057304,0.5,3436.0,3435.6,0.492]
[1762900057799,3.41036088,3436.0,3435.9,0.4738]
[1762900058402,0.5,3436.0,3435.9,0.4738]
[1762900058563,0.5,3436.2,3435.9,0.4738]
[1762900058766,2.91033344,3436.1,3435.9,0.4738]
[1762900059698,0.5,3436.2,3435.9,0.4738]
[1762900060270,2.90995571,3436.5,3435.9,0.4738]
[1762900060271,0.1891,3436.9,3436.1,0.4738]
[1762900060576,2.9101068,3436.3,3435.9,1.83764028]
[1762900060781,2.91010922,3436.3,3435.8,0.719]
[1762900060991,2.91010922,3436.3,3435.8,1.211]
[1762900061189,0.5,3436.4,3435.8,1.211]
[1762900061391,3.41005072,3436.4,3435.8,3.62952338]
[1762900062303,3.41005072,3436.4,3435.9,2.91044515]
[1762900062809,3.41005072,3436.4,3435.9,0.492]
[1762900063195,0.26932784,3436.3,3435.9,0.492]
[1762900063398,0.26932784,3436.2,3435.9,0.492]
[1762900063572,3.41005072,3436.4,3435.9,0.492]
[1762900063772,0.26932793,3436.3,3436.1,0.4738]
[1762900064102,0.26932793,3436.2,3436.1,0.4738]
[1762900067291,0.26932793,3435.9,3435.8,4.59533029]
[1762900067485,0.26932793,3435.9,3435.8,5.5548]
[1762900068124,0.26932793,3435.9,3435.8,8.46533029]
[1762900069512,0.26932793,3435.9,3435.8,9.67930206]
[1762900069834,0.26932793,3435.9,3435.8,10.44206945]
[1762900070696,0.26932793,3435.9,3435.8,7.53153916]
[1762900070897,0.26932793,3435.9,3435.8,10.44206945]
[1762900071510,0.26932793,3435.9,3435.8,9.67930206]
[1762900074438,0.26932793,3435.9,3435.8,11.83468362]
[1762900075336,0.26932793,3435.9,3435.8,10.81304286]
[1762900075898,0.26932793,3435.9,3435.8,10.81054286]
[1762900076438,0.26932793,3435.9,3435.8,12.343004]
[1762900077800,0.26932793,3435.9,3435.8,11.21604686]
[1762900078150,0.26932793,3435.9,3435.8,7.34604686]
[1762900078302,0.002,3437.1,3437.0,2.90951411]
[1762900078636,0.002,3437.1,3437.0,4.15702203]
[1762900078637,0.27437852,3437.1,3437.0,4.15702203]
[1762900078828,0.27437852,3437.1,3437.0,3.38041411]
[1762900079138,0.27437852,3437.1,3437.0,4.09841411]
[1762900079349,0.27437852,3437.1,3437.0,6.5580628]
[1762900079555,0.27437852,3437.1,3437.0,5.52258557]
[1762900080923,0.27437852,3437.1,3437.0,5.05808557]
[1762900081867,0.27437852,3437.1,3437.0,2.14857146]
[1762900082069,0.27437852,3437.1,3437.0,5.05808557]
[1762900082228,0.27437852,3437.1,3437.0,3.18287516]
[1762900082435,0.27437852,3437.1,3437.0,5.13271781]
[1762900083724,0.27437852,3437.1,3437.0,4.41471781]
[1762900084035,0.27437852,3437.1,3437.0,5.38415891]
[1762900085461,0.27437852,3437.1,3437.0,6.93204365]
[1762900085873,0.27437852,3437.1,3437.0,7.64904365]
[1762900086137,0.27437852,3437.1,3437.0,8.70491009]
[1762900086853,0.27437852,3437.1,3437.0,1.24491173]
[1762900087058,0.27437852,3437.1,3437.0,3.84491411]
[1762900087256,0.27437852,3437.1,3437.0,4.15445949]
[1762900087459,0.27437852,3437.1,3437.0,6.46970029]
[1762900087772,0.27437852,3437.1,3437.0,7.1330257]
[1762900087942,0.27437852,3437.1,3437.0,8.29208338]
[1762900088138,0.27437852,3437.1,3437.0,3.79556527]
[1762900088341,0.27437852,3437.1,3437.0,6.2630217]
[1762900088892,0.27437852,3437.1,3437.0,7.1330257]
[1762900089039,0.002,3437.1,3437.0,7.64904365]
[1762900089243,0.002,3437.1,3437.0,7.6479049]
[1762900089479,0.002,3437.1,3437.0,9.39052447]
[1762900089691,0.002,3437.1,3437.0,7.84377848]
[1762900089974,0.002,3437.1,3437.0,0.77383864]
[1762900090366,0.002,3437.1,3436.9,2.90957153]
[1762900090367,1.21298759,3437.1,3436.9,0.77383864]
[1762900090566,0.62118759,3437.0,3436.9,0.77383864]
[1762900090765,0.62118759,3437.0,3436.8,0.77383864]
[1762900090968,0.62118759,3437.0,3436.7,0.77383864]
[1762900090969,0.93418759,3436.9,3436.7,0.77383864]
[1762900091176,0.4705,3436.7,3436.6,0.77383864]
[1762900091356,0.74208759,3436.7,3436.5,3.68376132]
[1762900091545,0.27158759,3436.6,3436.5,3.68376132]
[1762900092378,0.27158759,3436.6,3436.5,4.15466132]
[1762900092559,0.27158759,3436.6,3436.5,4.26217796]
[1762900092881,0.002,3437.1,3437.0,2.90951411]
[1762900093079,0.27364658,3437.1,3437.0,2.90951411]
[1762900093648,0.27364658,3437.1,3436.9,2.93866936]
[1762900093850,0.74214658,3437.0,3436.7,4.40072213]
[1762900094058,0.27164658,3436.9,3436.8,2.90968342]
[1762900094384,0.27164658,3436.9,3436.7,0.717]
[1762900094585,0.002,3437.1,3436.7,0.717]
[1762900094783,0.27169936,3437.0,3436.7,0.717]
[1762900094985,0.002,3437.1,3436.9,2.90959876]
[1762900095284,0.27170149,3437.0,3436.9,2.90958147]
[1762900095884,0.002,3437.1,3437.0,2.90951411]
[1762900096275,0.002,3437.1,3437.0,4.54645738]
[1762900096475,0.002,3437.1,3437.0,5.34952074]
[1762900097254,0.002,3437.1,3437.0,6.48326154]
[1762900097467,0.002,3437.1,3437.0,9.55019818]
[1762900098367,0.002,3437.1,3437.0,10.01469818]
[1762900098580,0.002,3437.1,3437.0,10.42020218]
[1762900099090,0.002,3437.1,3437.0,11.50349157]
[1762900099996,0.002,3437.1,3437.0,9.95570218]
[1762900100562,0.002,3437.1,3437.0,10.42020218]
[1762900100768,0.002,3437.1,3437.0,9.95570218]
[1762900101365,0.002,3437.1,3437.0,9.23870218]
[1762900101571,0.002,3437.1,3437.0,9.95570218]
[1762900102460,0.002,3437.1,3437.0,11.50349157]
[1762900103793,0.002,3437.1,3437.0,9.95470218]
[1762900104182,0.9414,3437.1,3437.0,7.91325491]
[1762900104382,0.9414,3437.1,3437.0,3.87]
[1762900104680,0.9414,3437.1,3436.5,0.77493299]
[1762900104681,0.5,3436.6,3436.5,0.77493299]
[1762900104881,0.74262391,3436.6,3436.4,0.77493299]
[1762900105081,0.27212391,3436.5,3436.4,3.6849551]
[1762900105664,0.74262391,3436.5,3436.4,0.77493299]
[1762900106003,1.20052391,3436.5,3436.4,3.6849551]
[1762900106384,1.20052391,3436.5,3436.4,0.77493299]
[1762900106559,1.20052391,3436.5,3436.3,2.91010389]
[1762900106764,0.9579,3436.7,3436.4,3.6854879]
[1762900106964,0.27228407,3436.6,3436.4,3.6854879]
[1762900107172,0.27228407,3436.5,3436.4,3.6854879]
[1762900107398,0.27228407,3436.5,3436.4,2.909951]
[1762900107892,0.27228407,3436.5,3436.4,2.91002211]
[1762900108263,0.27228407,3436.5,3436.4,3.68552303]
[1762900109099,0.27228407,3436.5,3436.4,2.91002211]
[1762900109398,0.27228407,3436.5,3436.4,3.68532063]
[1762900109824,0.27228407,3436.5,3436.4,2.91002211]
[1762900109996,0.65,3436.9,3436.6,2.90980511]
[1762900110181,0.27226048,3436.8,3436.7,2.93886577]
[1762900111490,0.27226048,3436.8,3436.7,4.14367458]
[1762900111695,0.002,3437.1,3436.8,2.90962487]
[1762900111895,0.27221478,3437.0,3436.9,2.90959876]
[1762900112091,0.27221478,3437.0,3436.9,4.18316893]
[1762900112283,0.002,3437.1,3437.0,2.90951411]
[1762900112716,0.002,3437.1,3437.0,4.08421411]
[1762900112880,0.002,3437.1,3437.0,3.62551411]
[1762900113258,0.002,3437.1,3437.0,4.04325491]
[1762900113416,0.002,3437.1,3437.0,6.79239903]
[1762900113598,0.002,3437.1,3437.0,6.07639903]
[1762900113796,0.002,3437.1,3437.0,6.79239903]
[1762900114386,0.002,3437.1,3437.0,7.25109903]
[1762900115093,0.002,3437.1,3437.0,6.79239903]
[1762900115420,0.002,3437.1,3437.0,7.25109903]
[1762900116122,0.002,3437.1,3437.0,6.07639903]
[1762900116324,0.4986,3437.1,3437.0,6.07639903]
[1762900116526,1.4565,3437.1,3436.9,1.03284586]
[1762900116727,1.4565,3437.1,3436.8,1.03284586]
[1762900116728,0.7938,3437.0,3436.8,1.03284586]
[1762900117024,0.27226279,3436.9,3436.7,3.68494139]
[1762900117228,0.27226279,3436.8,3436.7,3.68494139]
[1762900117749,0.27226279,3436.8,3436.7,0.77523337]
[1762900118390,0.27226279,3436.8,3436.7,2.90976809]
[1762900118591,0.27226279,3436.8,3436.7,0.77521493]
[1762900118843,0.27227048,3436.8,3436.7,0.77521493]
[1762900119137,0.76887048,3436.8,3436.7,0.77521493]
[1762900119635,1.22677048,3436.8,3436.7,0.77521493]
[1762900119838,1.22677048,3436.8,3436.6,0.77521493]
[1762900120034,0.27227048,3436.7,3436.6,0.77521493]
[1762900120205,0.27227048,3436.7,3436.5,0.77521493]
[1762900120206,0.76887048,3436.7,3436.5,0.77521493]
[1762900120406,0.27227048,3436.6,3436.5,0.77521493]
[1762900120804,0.60817048,3436.6,3436.5,0.77521493]
[1762900121008,1.06607048,3436.6,3436.5,0.77521493]
[1762900124252,0.5,3436.5,3436.3,0.77521493]
[1762900124454,0.77227048,3436.4,3436.3,0.77521493]
[1762900124675,0.27227048,3436.4,3436.3,3.68532173]
[1762900125162,0.27227048,3436.4,3436.3,4.90685896]
[1762900125474,0.002,3436.9,3436.3,9.02416099]
[1762900125775,0.002,3436.9,3436.8,4.14311058]
[1762900126066,0.002,3436.9,3436.8,3.36838342]
[1762900126262,0.002,3436.9,3436.8,2.90968342]
[1762900126465,0.002,3436.9,3436.8,3.71228379]
[1762900131065,0.4986,3436.9,3436.8,3.71228379]
[1762900131246,0.002,3436.9,3436.8,3.71228379]
[1762900131449,0.2743753,3436.9,3436.8,3.71228379]
[1762900131764,0.2743753,3436.9,3436.8,4.74512965]
[1762900131949,0.002,3436.9,3436.8,4.74512965]
[1762900132482,0.002,3436.9,3436.8,5.20382965]
[1762900132686,0.002,3436.9,3436.8,4.17098379]
[1762900132976,0.002,3436.9,3436.8,4.66938062]
[1762900133684,0.002,3436.9,3436.8,5.04578779]
[1762900133845,0.002,3436.9,3436.8,7.72731798]
[1762900134038,0.002,3436.9,3436.8,6.17952859]
[1762900135470,0.002,3436.9,3436.8,8.25048305]
[1762900136197,0.002,3436.9,3436.8,6.42522859]
[1762900137908,0.002,3436.9,3436.8,6.90852859]
[1762900138671,0.002,3436.9,3436.8,6.42522859]
[1762900139624,0.4698,3436.9,3436.8,1.93634117]
[1762900139804,0.4698,3436.9,3436.8,6.31008153]
[1762900140011,1.1581,3436.9,3436.8,6.31008153]
[1762900140302,1.1581,3436.9,3436.7,2.90968804]
[1762900140303,1.1581,3436.9,3436.7,1.55265731]
[1762900140619,0.8186,3436.8,3436.7,3.9445261]
[1762900140976,1.0909185,3436.8,3436.5,1.0348071]
[1762900141211,3.60670103,3436.9,3435.8,2.07195446]
[1762900141212,0.4678,3436.6,3436.4,15.5348071]
[1762900141378,0.4932,3436.7,3436.4,18.44478151]
[1762900141715,0.4678,3436.5,3436.4,18.44478151]
[1762900141915,0.4678,3436.5,3436.4,17.40997441]
[1762900142108,0.4678,3436.5,3436.4,2.90997441]
[1762900142495,0.6971,3436.9,3436.4,2.90997441]
[1762900142696,0.4678,3436.5,3436.4,2.90997441]
[1762900144428,0.4678,3436.5,3436.3,18.44487686]
[1762900144633,0.4678,3436.5,3436.4,2.91002211]
[1762900146625,0.961,3436.5,3436.3,15.5348071]
[1762900146927,0.3254,3436.4,3436.3,18.4449139]
[1762900147432,0.8186,3436.4,3436.2,3.94496585]
[1762900147593,0.4932,3436.3,3436.2,3.94496585]
[1762900147793,0.961,3436.3,3436.2,3.94496585]
[1762900147994,0.4678,3436.3,3436.2,15.5348071]
[1762900148203,1.7333062,3436.3,3436.2,15.27678426]
[1762900148631,1.2333062,3436.3,3436.2,15.27678426]
[1762900148828,0.2723062,3436.3,3436.2,14.5]
[1762900149028,1.2333062,3436.3,3436.2,15.27678426]
[1762900149221,1.2333062,3436.3,3436.1,0.77678426]